Cogmind - Beta 14 @@@ ROGUE MODE // 2024.08.21 @ 00:27:58 Player: TheProctologist Result: Destroyed by YI-UF0 with YI-UF0's Doublenader Performance ------------- Evolutions (0) 0 Regions Visited (2) 400 Robots Destroyed (25) 125 Value Destroyed (584) 584 Prototype IDs (0) 0 Alien Tech Used (0) 0 Bonus (35) 35 TOTAL SCORE: 1144 Bonus ------- Follower Combat Kills 35 Cogmind --------- Core Integrity 0/250 Matter 300/300 Energy 250/250 System Corruption 0% Temperature Cool (0) Movement Treading (240) Ox1 Location -10/Mines Parts ------- > --- POWER (1) -------- Ion Engine > --- PROPULSION (2) --- Light Treads > --- UTILITY (2) ------ Large Storage Unit Structural Scanner > --- WEAPON (2) ------- Hammer Hammer > --- INVENTORY (15) --- Ion Engine Light Ion Engine Aluminum Leg Improved Heat Sink Small Storage Unit ECM Suite Light Armor Plating Medium Laser Small Laser Assault Rifle Light Assault Rifle Grenade Launcher Mining Laser Hammer Mining Claw Peak State ------------ > --- POWER ------------ Light Nuclear Core > --- PROPULSION ------- Light Treads Light Treads > --- UTILITY ---------- Large Storage Unit Structural Scanner > --- WEAPON ----------- Medium Laser Light Assault Rifle > --- INVENTORY -------- Light Ion Engine Light Ion Engine Aluminum Leg Improved Heat Sink Small Storage Unit ECM Suite Small Laser Mining Laser [Rating: 10] Favorites ----------- Power Ion Engine Engine Ion Engine Power Core Light Nuclear Core Propulsion Light Treads Treads Light Treads Leg Aluminum Leg Utility Large Storage Unit Device Structural Scanner Storage Large Storage Unit Weapon Hammer Energy Gun Medium Laser Ballistic Gun Light Assault Rifle Impact Weapon Hammer Build | -11 -10 -10 ------- Run | Yrd Mat Min Slots Evolved . | . . . Power . | . . . Propulsion . | . . . Utility . | . . . Weapon . | . . . Parts Attached 25 | 8 17 . Power 6 | 1 5 . Engine 5 | 1 4 . Core 1 | . 1 . Reactor . | . . . Propulsion 6 | 2 4 . Treads 5 | 2 3 . Leg 1 | . 1 . Wheel . | . . . Hover . | . . . Flight . | . . . Utility 3 | 1 2 . Device 1 | . 1 . Storage 2 | 1 1 . Processor . | . . . Hackware . | . . . Protection . | . . . Artifact . | . . . Weapon 10 | 4 6 . Energy Gun 4 | 2 2 . Energy Cannon . | . . . Ballistic Gun 4 | 2 2 . Ballistic Cannon . | . . . Launcher . | . . . Special Weapon . | . . . Impact Weapon 2 | . 2 . Slashing Weapon . | . . . Piercing Weapon . | . . . Special Melee Weapon . | . . . Unidentified Prototypes . | . . . Parts Lost 6 | . 5 1 Power 2 | . 2 . Propulsion 3 | . 2 1 Utility . | . . . Weapon 1 | . 1 . Highest Loss Streak 2 | . 2 1 To Critical Strikes . | . . . Average Slot Usage (%) 93 | . 94 86 Engine 12 | . 12 14 Treads 22 | . 23 15 Leg 1 | . 2 . Device 12 | . 12 14 Storage 14 | . 14 14 Energy Gun 6 | . 7 . Ballistic Gun 6 | . 7 . Impact Weapon 14 | . 12 28 Peak Build Rating 10 | 6 10 8 Average Rating 7 | 5 7 7 On Entrance 4 | . 6 8 Naked Turns . | . . . Heaviest Build 30 | 11 30 30 Greatest Support 40 | 40 40 40 Greatest Overweight (x) 2 | . 2 1 Average Overweight (x) . | . . . Largest Inventory Capacity 15 | 8 15 15 Average Capacity 14 | 7 14 15 Most Carried 15 | 4 15 15 Average Carried 10 | 2 10 15 Final Capacity 15 | 8 15 15 Final Carried 15 | 4 15 15 Class Distribution -------------------- 96% | Mutant 3% | Scavenger-Mutant Dominant Class ---------------- Mutant | -10/Materials Mutant | -10/Mines Resources | -11 -10 -10 ----------- Run | Yrd Mat Min Matter Collected 563 | 217 336 10 Remotely . | . . . Salvage Created 892 | 18 802 72 Parts 41 | 3 38 . Haulers Intercepted 1 | . 1 . Recyclers Shooed 1 | 1 . . Parts Field Recycled . | . . . Retrieved Matter . | . . . Parts Self-Destructed . | . . . Prevented . | . . . Kills | -11 -10 -10 ------- Run | Yrd Mat Min Combat Hostiles Destroyed 16 | . 14 2 Melee 2 | . 2 . Guns 12 | . 12 . Classes Destroyed 8 | 1 7 . Worker 1 | . 1 . Builder 3 | . 3 . Tunneler 1 | 1 . . Hauler 1 | . 1 . Recycler 2 | . 2 . Watcher 1 | . 1 . Swarmer 3 | . 3 . Grunt 13 | . 11 2 Best Kill Streak 3 | 1 3 2 Combat Bots Only 3 | . 3 2 Max Kills in Single Turn 2 | 1 2 1 Gunslinging . | . . . Exploded . | . . . Melee 1 | . 1 . Uniques/NPCs Destroyed . | . . . Combat | -11 -10 -10 -------- Run | Yrd Mat Min Hostile Shots Fired 134 | . 116 18 Missed 22 | . 17 5 Damage Taken 1388 | . 1072 316 Core 254 | . 175 79 Absorbed by Shields . | . . . Regen/Repaired (Parts) 103 | . 103 . Core Remaining (%) 100 | 100 . . Volleys Fired 82 | 9 73 . Largest 2 | 2 2 . Hottest 70 | 60 70 . Shots Fired 162 | 18 144 . Gun 162 | 18 144 . Cannon . | . . . Launcher . | . . . Special . | . . . Kinetic 80 | 9 71 . Thermal 82 | 9 73 . Explosive . | . . . Electromagnetic . | . . . Robot Hit Streak 12 | 3 12 . Robot Miss Streak 8 | 1 8 . Penetration Max . | . . . Secondary Targets . | . . . Shots Hit Robots 115 | 11 100 4 Core Hits 39 | 2 37 . Critical Kills . | . . . Critical Parts Destroyed 6 | . 3 3 Critical Strikes 8 | . 5 3 Burn 2 | . 2 . Smash 6 | . 3 3 Melee Attacks 34 | . 25 9 Impact 34 | . 25 9 Slashing . | . . . Piercing . | . . . Sneak Attacks 3 | . 3 . Combat Hostiles . | . . . Follow-up Attacks 3 | . 2 1 Damage Inflicted 1676 | 118 1458 100 Guns 1015 | 118 897 . Cannons . | . . . Explosions 75 | . 75 . Melee 582 | . 482 100 Ramming 4 | . 4 . Kinetic 440 | 37 403 . Thermal 650 | 81 569 . Explosive . | . . . Electromagnetic . | . . . Impact 582 | . 482 100 Slashing . | . . . Piercing . | . . . Highest Corruption . | . . . Average Corruption . | . . . Corruption Purged . | . . . Corruption Blocked . | . . . Overload Shots . | . . . Overflow Damage 251 | . 175 76 Projectiles . | . . . Explosions . | . . . Melee 251 | . 175 76 Knockbacks 2 | . 1 1 Impact 2 | . 1 1 Kinetic . | . . . Secondary . | . . . Self-Inflicted Damage . | . . . Shots . | . . . Rammed . | . . . Targets Rammed 2 | . 2 . Kicked 2 | . 2 . Crushed . | . . . Highest Temperature 279 | . 279 . Average Temperature 71 | . 71 . Received Heat Transfer 585 | . 504 81 Siege Activations . | . . . Robots Corrupted 2 | . . 2 Combat Hostiles 2 | . . 2 Parts Fried 7 | . 5 2 Impact Corruptions 10 | . 6 4 Robots Melted . | . . . Combat Hostiles . | . . . Parts Melted 4 | . 4 . Heat Transferred 1687 | 175 1512 . Parts Sabotaged . | . . . Parts Stolen . | . . . Parts Stripped . | . . . Power Chain Reactions . | . . . Alert | -11 -10 -10 ------- Run | Yrd Mat Min Peak Influence 238 | 5 238 76 Initial 3 | . 3 . Average 77 | . 85 50 Maximum Alert Level 1 | . 1 . Low Security (%) 94 | 100 93 100 Level 1 5 | . 6 . Level 2 . | . . . Level 3 . | . . . Level 4 . | . . . Level 5 . | . . . High Security . | . . . Max Security . | . . . Squads Dispatched 3 | . 3 . Investigation 2 | . 2 . Extermination . | . . . Reinforcement 1 | . 1 . Assault . | . . . Garrison . | . . . Intercept . | . . . Searches Triggered . | . . . Construction Impeded . | . . . Haulers Reinforced . | . . . Active Scanning Responses . | . . . Cargo Convoy Interrupts . | . . . Stealth | -11 -10 -10 --------- Run | Yrd Mat Min Distress Signals 1 | . 1 . Communications Jammed . | . . . Distress Signals . | . . . Times Spotted 32 | . 29 3 Peak Tracking Total 4 | . 4 2 Tactical Retreats 1 | . 1 . Traps | -11 -10 -10 ------- Run | Yrd Mat Min Traps Triggered 1 | . 1 . Indirectly . | . . . Trap Hack Attempts . | . . . Triggered . | . . . Disarmed . | . . . Reprogrammed . | . . . Reused . | . . . Traps Extracted . | . . . Installed . | . . . Triggered . | . . . Machines | -11 -10 -10 ---------- Run | Yrd Mat Min Machines Disabled 2 | . 2 . Max in Single Turn 2 | . 2 . Machines Repaired . | . . . Machines Dismantled . | . . . Machines Sabotaged . | . . . Overloaded Fab Kills . | . . . Hacking | -11 -10 -10 --------- Run | Yrd Mat Min Machines Accessed 6 | . 6 . Terminals 4 | . 4 . Fabricators . | . . . Repair Stations 1 | . 1 . Recycling Units 1 | . 1 . Scanalyzers . | . . . Garrison Access . | . . . Total Hacks 11 | . 11 . Successful 7 | . 7 . Failed 4 | . 4 . Catastrophic 1 | . 1 . Database Lockouts . | . . . Manual 8 | . 8 . Terminals 8 | . 8 . Fabricators . | . . . Repair Stations 2 | . 2 . Recycling Units 1 | . 1 . Scanalyzers . | . . . Garrison Access . | . . . Terminal Hacks 2 | . 2 . Branch Access Points 1 | . 1 . Scanalyzer Index 1 | . 1 . Fabricator Hacks . | . . . Repair Station Hacks 2 | . 2 . Scan Component 1 | . 1 . Repair 1 | . 1 . Recycling Unit Hacks . | . . . Scanalyzer . | . . . Garrison Access Hacks . | . . . Unauthorized Hacks 3 | . 3 . Terminals 2 | . 2 . Botnet 2 | . 2 . Fabricators . | . . . Repair Stations . | . . . Recycling Units 1 | . 1 . Tunnel 1 | . 1 . Scanalyzers . | . . . Garrison Access . | . . . Data Cores Recovered . | . . . Used . | . . . Hacking Detections 4 | . 4 . Full Trace Events 1 | . 1 . Feedback Events . | . . . Feedback Blocked . | . . . Robot Schematics Acquired . | . . . Robots Built . | . . . Authchips . | . . . Time . | . . . Total Robot Build Rating . | . . . Part Schematics Acquired . | . . . Parts Built . | . . . Authchips . | . . . Time . | . . . Total Part Build Rating . | . . . Parts Repaired 1 | . 1 . Time 26 | . 26 . Parts Recycled . | . . . Recycled Matter . | . . . Retrieved Matter . | . . . Retrieved Components . | . . . Parts Scanalyzed . | . . . Part Schematics Acquired . | . . . Parts Damaged . | . . . Bothacking | -11 -10 -10 ------------ Run | Yrd Mat Min Used RIF Installer . | . . . Robots Hacked . | . . . Non-combat . | . . . Combat . | . . . Robot Hacks Applied . | . . . Relay Couplers Released . | . . . Fabnet Peak Effective % . | . . . Robots Rewired . | . . . Allies Hacked . | . . . Hacks Repelled . | . . . Allies | -11 -10 -10 -------- Run | Yrd Mat Min Total Allies 1 | . . 1 Largest Group 1 | . . 1 Highest-Rated Group 31 | . . 31 Highest-Rated Ally 31 | . . 31 Total Orders . | . . . Ally Attacks 2 | . . 2 Total Damage 43 | . . 43 Kills 1 | . . 1 Allies Corrupted . | . . . Allies Melted . | . . . Intel | -11 -10 -10 ------- Run | Yrd Mat Min Robot Analysis Total . | . . . Derelict Logs Recovered 1 | . . 1 Drone Launches . | . . . Drone Recoveries . | . . . Exploration | -11 -10 -10 ------------- Run | Yrd Mat Min Turns Passed 2613 | 116 2158 339 Spaces Moved 1241 | 48 1059 134 Core 2 | 2 . . Treads 1145 | 46 965 134 Legs 94 | . 94 . Wheels . | . . . Hover . | . . . Flight . | . . . Fastest Speed 50 | 50 160 160 Average Speed 175 | 155 169 232 Slowest Speed 260 | 160 260 240 Overloaded Moves . | . . . Propulsion Burnouts . | . . . Robots Hopped . | . . . Cave-ins Triggered . | . . . Exploration Rate (%) 44 | 5 92 35 Regions Visited 2 Branch Regions 1 Pre-discovered Areas 1 | . 1 . Known Exits Taken 1 | . 1 . Unknown Exits Taken 1 | 1 . . Scrap Searched . | . . . Spaces Dug . | . . . Terrain Destroyed 8 | . 8 . Melee . | . . . Projectile . | . . . AOE 8 | . 8 . Terrain Rammed . | . . . Walls Destroyed . | . . . Machines Disabled . | . . . Actions | -11 -10 -10 --------- Run | Yrd Mat Min Total 1464 | 70 1245 149 Wait 64 | . 56 8 Move 1239 | 47 1058 134 Hop . | . . . Pick Up 12 | 4 8 . Fast Attach 14 | 6 8 . Attach 5 | 2 3 . Detach 6 | 2 4 . Swap 6 | . 6 . Drop 4 | . 4 . Fire 82 | 9 73 . Melee 30 | . 23 7 Ram . | . . . Kick 2 | . 2 . Crush . | . . . Escape Stasis . | . . . Rewire . | . . . Trap . | . . . Miscellaneous . | . . . Route ------- -11/Scrapyard -10/Materials (discovered 3 exits: [*Mat x2] / *Min) -10/Mines (discovered 1 exit: [*Mat]) History --------- Turn | Location | Event 12 | -11/Scrapyard | Discovered new exit (range 15) 117 | -11/Scrapyard | Entered Materials 289 | -10/Materials | Discovered new exit (range 16) 326 | -10/Materials | Build established: Mutant 541 | -10/Materials | Core integrity fell below 50% 1006 | -10/Materials | Discovered new exit (range 14) 1169 | -10/Materials | Discovered new exit (range 5) 1303 | -10/Materials | Identified exit to Mines 2192 | -10/Materials | Repaired Lgt. Treads 2275 | -10/Materials | Entered Mines 2280 | -10/Mines | Discovered new exit (range 12) 2309 | -10/Mines | Core integrity fell below 20% 2475 | -10/Mines | Learned Materials terminal intel 2604 | -10/Mines | Escorted by a lone wolf Derelict 2614 | -10/Mines | Destroyed by YI-UF0 with YI-UF0's Doublenader Last Messages --------------- 02315_ K-01 Serf collects debris. 02328_ K-01 Serf cleans the Plasma Injector. 02336_ K-01 Serf collects debris. 02475_ Acquired derelict log, extracted data. Data stored: Materials terminal intel. 02480_ K-01 Serf collects debris. 02586_ U-05 Engineer builds a Wall. 02586_ T-07 Excavator destroyed. 02589_ The unstable cave ceiling collapses. 02604_ A derelict emerges from the shadows: "Nice work disposing of those Unaware! I'm happy to return the favor and help see you out of these parts." 02604_ YI-UF0 mumbles something. 02605_ G-47 Trooper destroyed. 02606_ YI-UF0: "WHAAM!" 02610_ The unstable cave ceiling collapses. 02614_ Imp. Heat Sink crushed. [Achievement: Just Browsing] Map ----- +----------------------------------------------------+ | ??????????????????????????????????????? | | ??????????????????????????????????????? | | ??????????????????????????????????????? | | ??????????????????????????????????????? | | ??????????????????????????????????????? | | ??????????????????????????????????????? | | ??????????????????????????????????????? | | ??????????????????????????????????????? | | ??????????????????????????????????????? | | ??????????????????????????????????????? | | ?????????????? ??????????????????????? | | ?????????????? ??????????????????????? | | ?????????????? ##????????????????????? | | ?????????????? ##????????????????????? | | ?????????????? ##????????????????????? | | ?????????????? ######????????????????? | | ????????????## ######????????????????? | | ???????????### ## ##????????????????? | | ??????######## # ???????????????????? | | ??????####### ???????????????????? | | ??????## g ??########?????????? | | ?????### %[ ###?#########????????? | | ?????###!*% #### ###????????? | | ?????## g ### ????????? | | ?????## [ ????????? | | ?????## @ ####????????? | | ?????## ????????? | | ?????## ????????? | | ?????##### ????????? | | ?????##### ????????? | | ????????## % ????##### | | ????????### #### # ???###### | | ????????#### ###### ????### # | | ?????????##### ###### ?????## | | ??????????### #####?????## | | ????????????# ##### #####?????## | | ????????????########## ##????????### | | ????????????#######?## ##???######## | | ????????????????????## ##??######## | | ????????????????????## ####### | | ????????????????????## ###### # | | ????????????????????## ## | | ????????????????????## ### | | ????????????????????########### ##### | | ????????????????????########### #####? | | ????????????????????????###### ###### | | ###########??????######?## ##?### | | ###########?????########## ## ##### | | ## ########## ##### ## ##### | | ## < ######### | +----------------------------------------------------+ Best States ------------- Heat Dissipation 25 Energy Generation 14 Energy Capacity 250 Matter Stores 300 Matter Capacity 300 Sight Range 16 Terrain Scan Density 10 Evasion (%) 40 Recoil Reduction 2 Item Schematics ----------------- None Robot Schematics ------------------ None Fabricated ------------ Nothing Alien Tech Used ----------------- None Achievements -------------- Just Browsing Challenges ------------ None Game ------ Seed MetafieldCobblerTreads Manual? 0 Play Time 00:16:46 Cumulative 43.4 hours Start 2024.08.21 @ 00:12:23 End 2024.08.21 @ 00:27:58 Sessions 1 Manual Loads 0 Difficulty Rogue Special Mode None Game No. 58 Rogue 58 Adventurer 0 Explorer 0 Win Type - Total 0 Types 0/0/0/0/0/0/0/0/0 Lore% 14 Gallery% 25 Achievement% 24 Wizard Run 0 Options --------- Layout 1 ASCII 0 Keyboard 0 Movement Numpad Keybinds 0 Fullscreen 1 Font 32/SmallcapsGlow Map View 50x40 Zoom Use 10% Tactical HUD 1 Map Filters NONE Filters NONE Steam 1 RUN: 4176ee12-0982-47a7-b10d-011b906453a2